Cogmind - Beta 16 @@@ ROGUE MODE // 2025.10.23 @ 13:21:52 Player: chemicalhorse Result: Destroyed by Y-45 Defender with Beam Rifle Performance ------------- Evolutions (0) 0 Regions Visited (4) 800 Robots Destroyed (23) 115 Value Destroyed (700) 700 Prototype IDs (0) 0 Alien Tech Used (0) 0 Bonus (-116) -116 TOTAL SCORE: 1499 Bonus ------- Friendly Fire -116 Cogmind --------- Core Integrity 0/250 Matter 292/300 Energy 140/140 System Corruption 3% Temperature Cool (17) Movement Walking (260) Ox2 Location -9/Recycling Parts ------- > --- POWER (1) -------- Light Deuterium Engine > --- PROPULSION (2) --- Aluminum Leg > --- UTILITY (2) ------ Disposable Heat Sink Large Storage Unit > --- WEAPON (2) ------- Small Laser Light Cannon > --- INVENTORY (15) --- Sensor Array Signal Interpreter Heavy Armor Plating Grenade Launcher Rocket Launcher Mining Laser Peak State ------------ > --- POWER ------------ Light Angular Momentum Engine > --- PROPULSION ------- Aluminum Leg Aluminum Leg > --- UTILITY ---------- Disposable Heat Sink Large Storage Unit > --- WEAPON ----------- Light Assault Rifle Light Cannon > --- INVENTORY -------- Light Deuterium Engine Aluminum Leg Sensor Array Signal Interpreter Heavy Armor Plating Small Laser Grenade Launcher Mining Laser [Rating: 13] Favorites ----------- Power Light Ion Engine Engine Light Ion Engine Propulsion Aluminum Leg Leg Aluminum Leg Utility Large Storage Unit Device Disposable Heat Sink Storage Large Storage Unit Weapon Light Assault Rifle Energy Gun EM Pulse Gun Ballistic Gun Light Assault Rifle Ballistic Cannon Light Cannon Launcher Grenade Launcher Special Weapon Mining Laser Build | -11 -10 -10 -10 -9 ------- Run | Yrd Mat Min Sub Rec Slots Evolved . | . . . . . Power . | . . . . . Propulsion . | . . . . . Utility . | . . . . . Weapon . | . . . . . Parts Attached 24 | 8 6 2 8 . Power 5 | 1 1 1 2 . Engine 5 | 1 1 1 2 . Core . | . . . . . Reactor . | . . . . . Propulsion 5 | 2 1 . 2 . Treads . | . . . . . Leg 5 | 2 1 . 2 . Wheel . | . . . . . Hover . | . . . . . Flight . | . . . . . Utility 7 | 2 2 . 3 . Device 4 | 1 . . 3 . Storage 3 | 1 2 . . . Processor . | . . . . . Hackware . | . . . . . Protection . | . . . . . Artifact . | . . . . . Weapon 7 | 3 2 1 1 . Energy Gun 2 | 1 . . 1 . Energy Cannon . | . . . . . Ballistic Gun 2 | 2 . . . . Ballistic Cannon 1 | . . 1 . . Launcher 1 | . 1 . . . Special Weapon 1 | . 1 . . . Impact Weapon . | . . . . . Slashing Weapon . | . . . . . Piercing Weapon . | . . . . . Special Melee Weapon . | . . . . . Unidentified Prototypes . | . . . . . Parts Lost 13 | . 2 4 6 1 Power 4 | . 1 1 2 . Propulsion 4 | . 1 . 2 1 Utility 2 | . . 1 1 . Weapon 3 | . . 2 1 . Highest Loss Streak 4 | . 2 4 2 1 To Critical Strikes . | . . . . . Average Backups 7 | 1 7 9 8 5 Power . | . . . 1 . Propulsion 1 | . 1 2 . . Utility 2 | . 1 3 2 3 Weapon 2 | 1 3 3 2 2 Tool/Special . | . . . . . Unused Backups 2 | . . . . 2 Power . | . . . . . Propulsion . | . . . . . Utility 2 | . . . . 2 Weapon . | . . . . . Tool/Special . | . . . . . Average Slot Usage (%) 95 | . 99 83 99 98 Engine 13 | . 13 13 13 14 Leg 27 | . 27 28 27 26 Device 8 | . 6 . 13 14 Storage 16 | . 21 14 14 14 Energy Gun 3 | . 4 . 1 14 Ballistic Gun 15 | . 22 13 11 . Ballistic Cannon 8 | . . 12 14 14 Peak Build Rating 13 | 7 8 7 13 11 Average Rating 8 | 5 7 6 10 10 On Entrance 6 | . 7 7 7 11 Avg Prop Armor Cover (%) . | . . . . . Naked Turns . | . . . . . Heaviest Build 34 | 11 29 29 34 30 Greatest Support 20 | 20 20 20 20 20 Greatest Overweight (x) 2 | . 2 1 1 1 Average Overweight (x) . | . . 1 1 1 Largest Inventory Capacity 15 | 8 15 15 15 15 Average Capacity 14 | 7 14 15 15 15 Most Carried 11 | 3 10 11 11 7 Average Carried 8 | 1 7 10 9 6 Final Capacity 15 | 8 15 15 15 15 Final Carried 11 | 3 9 11 6 7 Class Distribution -------------------- 100% | Mutant Dominant Class ---------------- Mutant | -10/Materials Mutant | -10/Mines Mutant | -10/Subcaves Mutant | -9/Recycling Resources | -11 -10 -10 -10 -9 ----------- Run | Yrd Mat Min Sub Rec Matter Collected 881 | 222 227 62 370 . Remotely . | . . . . . Salvage Created 589 | 27 241 62 259 . Parts 42 | 3 13 6 20 . Haulers Intercepted . | . . . . . Recyclers Shooed 1 | . 1 . . . Parts Field Recycled . | . . . . . Retrieved Matter . | . . . . . Parts Self-Destructed 13 | . . . 13 . Prevented . | . . . . . Parts Restored . | . . . . . Kills | -11 -10 -10 -10 -9 ------- Run | Yrd Mat Min Sub Rec Combat Hostiles Destroyed 19 | . 7 2 10 . Guns 8 | . 6 . 2 . Cannons 4 | . . . 4 . AOE 7 | . 1 2 4 . Classes Destroyed 8 | 1 2 1 4 . Builder 1 | . . 1 . . Tunneler 1 | 1 . . . . Turret 1 | . . . 1 . Swarmer 4 | . 3 . 1 . Grunt 6 | . 4 2 . . Sentry 1 | . . . 1 . Subdweller 8 | . . . 8 . Guerrilla 1 | . . . 1 . Best Kill Streak 5 | 1 5 2 5 . Combat Bots Only 5 | . 5 2 5 . Max Kills in Single Turn 3 | 1 1 2 3 . Gunslinging . | . . . . . Exploded 2 | . 1 2 2 . Melee . | . . . . . Uniques/NPCs Destroyed . | . . . . . Combat | -11 -10 -10 -10 -9 -------- Run | Yrd Mat Min Sub Rec Hostile Shots Fired 134 | . 52 13 66 3 Missed 39 | . 12 2 25 . Hits 95 | . 40 11 41 3 Projectile 95 | . 40 11 41 3 AOE 1 | . . . 1 . Critical Strikes 2 | . . . 2 . Damage Taken 1496 | . 456 193 803 44 Core 261 | . 91 13 142 15 Absorbed by Shields . | . . . . . Core Remaining (%) 100 | 100 . . . . Volleys Fired 84 | 3 39 6 35 1 Largest 2 | 2 2 2 2 2 Hottest 100 | 40 100 50 70 70 Shots Fired 157 | 6 72 8 69 2 Gun 102 | 6 66 2 27 1 Cannon 36 | . . 1 34 1 Launcher 14 | . 1 5 8 . Special 5 | . 5 . . . Kinetic 111 | 6 50 3 51 1 Thermal 16 | . 5 . 10 1 Explosive 14 | . 1 5 8 . Electromagnetic 16 | . 16 . . . Robot Hit Streak 15 | 5 8 1 15 1 Robot Miss Streak 3 | 1 2 3 3 1 Penetration Max . | . . . . . Secondary Targets 1 | . 1 . . . Max Gunslinging Chain 1 | . 1 . . . Shots Hit Robots 98 | 5 40 2 50 1 Core Hits 45 | 2 15 6 22 . Critical Kills 1 | . 1 . . . Critical Parts Destroyed . | . . . . . Critical Strikes 3 | . 1 . 2 . Destroy 1 | . 1 . . . Blast 2 | . . . 2 . Melee Attacks . | . . . . . Impact . | . . . . . Slashing . | . . . . . Piercing . | . . . . . Sneak Attacks . | . . . . . Combat Hostiles . | . . . . . Follow-up Attacks . | . . . . . Damage Inflicted 1744 | 46 363 154 1161 20 Guns 537 | 41 339 . 157 . Cannons 442 | . . 19 403 20 Explosions 760 | . 24 135 601 . Melee . | . . . . . Ramming 5 | 5 . . . . Kinetic 804 | 41 239 19 485 20 Thermal 99 | . 24 . 75 . Explosive 736 | . . 135 601 . Electromagnetic 100 | . 100 . . . Impact . | . . . . . Slashing . | . . . . . Piercing . | . . . . . Highest Corruption 3 | . 3 3 3 3 Average Corruption 2 | . 2 3 3 3 Corruption Purged . | . . . . . Corruption Blocked . | . . . . . Effects 27 | . . 7 17 3 Message Errors 9 | . . 3 4 2 Matter Fused 6 | . . 1 4 1 Heat Flow Errors 1 | . . . 1 . Energy Discharges 4 | . . 1 3 . Data Loss (minor) 3 | . . 1 2 . Data Loss (major) 2 | . . . 2 . Misfires 1 | . . 1 . . Weapon Failures 1 | . . . 1 . Overload Shots . | . . . . . Overflow Damage 8 | . . . 8 . Projectiles 8 | . . . 8 . Explosions . | . . . . . Melee . | . . . . . Knockbacks 3 | . . . 3 . Impact . | . . . . . Kinetic 3 | . . . 3 . Secondary . | . . . . . Self-Inflicted Damage 26 | . 4 . 22 . Shots 2 | . 1 . 1 . Rammed . | . . . . . Targets Rammed 2 | 2 . . . . Kicked 2 | 2 . . . . Crushed . | . . . . . Highest Temperature 230 | . 80 10 230 8 Average Temperature 28 | . 22 7 133 6 Received Heat Transfer 405 | . 201 81 105 18 Siege Activations . | . . . . . Martial Activations . | . . . . . Shielding Activations . | . . . . . Robots Disrupted . | . . . . . Combat Hostiles . | . . . . . Robots Corrupted . | . . . . . Combat Hostiles . | . . . . . Parts Fried . | . . . . . Impact Corruptions . | . . . . . Robots Melted . | . . . . . Combat Hostiles . | . . . . . Parts Melted . | . . . . . Heat Transferred 225 | . 50 . 175 . Parts Sabotaged . | . . . . . Parts Stolen . | . . . . . Parts Stripped . | . . . . . Power Chain Reactions 1 | . 1 . . . Alert | -11 -10 -10 -10 -9 ------- Run | Yrd Mat Min Sub Rec Maximum Alert Level . | . . . . . Low Security (%) 100 | 100 100 100 . 100 Level 1 . | . . . . . Level 2 . | . . . . . Level 3 . | . . . . . Level 4 . | . . . . . Level 5 . | . . . . . High Security . | . . . . . Max Security . | . . . . . Peak Influence 104 | 5 104 53 . 8 Initial 27 | . . 27 . 8 Average 12 | . 20 6 . 1 Influence Increases 392 | 5 256 71 60 . Destroy 0b10 Robot/C 240 | . 140 40 60 . Destroy 0b10 Robot/NC 10 | 5 . 5 . . Destroy Leader 40 | . 30 10 . . Successful Hack 21 | . 21 . . . Disable Machine 15 | . 15 . . . Destroy Structure 36 | . 20 16 . . Lose Combat Pursuer 30 | . 30 . . . Influence Decreases 392 | 5 184 143 42 18 Entered New Map 55 | . . 45 . 10 Time Decay 267 | 5 164 58 32 8 Lost Part 70 | . 20 40 10 . Squads Dispatched 1 | . 1 . . . Investigation . | . . . . . Extermination . | . . . . . Reinforcement 1 | . 1 . . . Assault . | . . . . . Garrison . | . . . . . Intercept . | . . . . . Searches Triggered . | . . . . . Construction Impeded . | . . . . . Haulers Reinforced . | . . . . . Active Scanning Responses . | . . . . . Cargo Convoy Interrupts . | . . . . . Stealth | -11 -10 -10 -10 -9 --------- Run | Yrd Mat Min Sub Rec Distress Signals 3 | . 3 . . . Communications Jammed . | . . . . . Distress Signals . | . . . . . Times Spotted 34 | . 14 2 17 1 Peak Tracking Total 8 | . 5 2 8 2 Tactical Retreats 3 | . 2 . 1 . Traps | -11 -10 -10 -10 -9 ------- Run | Yrd Mat Min Sub Rec Traps Triggered 2 | . 2 . . . Indirectly . | . . . . . Trap Hack Attempts . | . . . . . Triggered . | . . . . . Disarmed . | . . . . . Reprogrammed . | . . . . . Reused . | . . . . . Traps Extracted . | . . . . . Installed . | . . . . . Triggered . | . . . . . Machines | -11 -10 -10 -10 -9 ---------- Run | Yrd Mat Min Sub Rec Machines Disabled 2 | . 1 . 1 . Max in Single Turn 1 | . 1 . 1 . Machines Repaired . | . . . . . Machines Dismantled . | . . . . . Machines Sabotaged . | . . . . . Overloaded Fab Kills . | . . . . . Hacking | -11 -10 -10 -10 -9 --------- Run | Yrd Mat Min Sub Rec Machines Accessed 11 | . 7 1 1 2 Terminals 8 | . 6 . . 2 Fabricators . | . . . . . Repair Stations 1 | . 1 . . . Recycling Units . | . . . . . Scanalyzers . | . . . . . Garrison Access . | . . . . . Total Hacks 28 | . 19 1 5 3 Successful 17 | . 10 1 5 1 Failed 11 | . 9 . . 2 Catastrophic 1 | . . . . 1 Database Lockouts . | . . . . . Manual 4 | . 3 . . 1 Terminals 19 | . 16 . . 3 Fabricators . | . . . . . Repair Stations 3 | . 3 . . . Recycling Units . | . . . . . Scanalyzers . | . . . . . Garrison Access . | . . . . . Terminal Hacks 16 | . 9 1 5 1 Record 11 | . 5 . 5 1 Part Schematic 1 | . 1 . . . Open Door 1 | . . 1 . . Locate Traps 1 | . 1 . . . Assault Status 1 | . 1 . . . Hauler Manifests 1 | . 1 . . . Fabricator Hacks . | . . . . . Repair Station Hacks 1 | . 1 . . . Scan Component 1 | . 1 . . . Recycling Unit Hacks . | . . . . . Scanalyzer . | . . . . . Garrison Access Hacks . | . . . . . Unauthorized Hacks . | . . . . . Terminals . | . . . . . Fabricators . | . . . . . Repair Stations . | . . . . . Recycling Units . | . . . . . Scanalyzers . | . . . . . Garrison Access . | . . . . . Data Cores Recovered . | . . . . . Used . | . . . . . Hacking Detections 8 | . 6 . . 2 Full Trace Events . | . . . . . Feedback Events . | . . . . . Feedback Blocked . | . . . . . Robot Schematics Acquired . | . . . . . Robots Built . | . . . . . Authchips . | . . . . . Time . | . . . . . Total Robot Build Rating . | . . . . . Part Schematics Acquired 1 | . 1 . . . Parts Built . | . . . . . Authchips . | . . . . . Time . | . . . . . Total Part Build Rating . | . . . . . Part Studies Acquired . | . . . . . Parts Repaired . | . . . . . Time . | . . . . . Parts Recycled . | . . . . . Recycled Matter . | . . . . . Retrieved Matter . | . . . . . Retrieved Components . | . . . . . Parts Scanalyzed . | . . . . . Part Schematics Acquired . | . . . . . Parts Damaged . | . . . . . Bothacking | -11 -10 -10 -10 -9 ------------ Run | Yrd Mat Min Sub Rec Used RIF Installer . | . . . . . Robots Hacked . | . . . . . Non-combat . | . . . . . Combat . | . . . . . Robot Hacks Applied . | . . . . . Relay Couplers Released . | . . . . . Fabnet Peak Effective % . | . . . . . Robots Rewired . | . . . . . Allies Hacked . | . . . . . Hacks Repelled . | . . . . . Allies | -11 -10 -10 -10 -9 -------- Run | Yrd Mat Min Sub Rec Total Allies 2 | . . 2 . . Largest Group 2 | . . 2 2 . Highest-Rated Group 50 | . . 50 50 . Highest-Rated Ally 31 | . . 31 31 . Total Orders . | . . . . . Ally Attacks 3 | . . . 3 . Total Damage 22 | . . . 22 . Kills . | . . . . . Allies Corrupted . | . . . . . Allies Melted . | . . . . . Intel | -11 -10 -10 -10 -9 ------- Run | Yrd Mat Min Sub Rec Active Infowar (turns) 775 | 43 328 . 404 . Sensors 62 | . . . 62 . Seismic 371 | 43 328 . . . ECM 342 | . . . 342 . Robot Analysis Total . | . . . . . Derelict Logs Recovered . | . . . . . Drone Launches . | . . . . . Drone Recoveries . | . . . . . Exploration | -11 -10 -10 -10 -9 ------------- Run | Yrd Mat Min Sub Rec Turns Passed 2079 | 108 699 430 736 106 Spaces Moved 947 | 74 283 213 323 54 Core 16 | 16 . . . . Treads . | . . . . . Legs 931 | 58 283 213 323 54 Wheels . | . . . . . Hover . | . . . . . Flight . | . . . . . Fastest Speed 50 | 50 120 190 190 190 Average Speed 183 | 104 189 190 190 190 Slowest Speed 260 | 120 260 190 190 190 Overloaded Moves . | . . . . . Propulsion Burnouts . | . . . . . Robots Hopped . | . . . . . Potential Cave-ins 2 | . 2 . . . Cave-ins Triggered . | . . . . . Exploration Rate (%) 27 | 5 60 30 26 18 Regions Visited 4 Branch Regions 3 Pre-discovered Areas . | . . . . . Known Exits Taken 1 | . . . 1 . Unknown Exits Taken 3 | 1 1 1 . . Scrap Searched 1 | . . 1 . . Spaces Dug 5 | . 5 . . . Terrain Destroyed 90 | . 20 39 31 . Melee . | . . . . . Projectile 5 | . 5 . . . AOE 85 | . 15 39 31 . Terrain Rammed . | . . . . . Walls Destroyed . | . . . . . Machines Disabled . | . . . . . Actions | -11 -10 -10 -10 -9 --------- Run | Yrd Mat Min Sub Rec Total 1134 | 95 375 231 377 56 Wait 52 | 6 34 6 6 . Move 944 | 74 282 212 322 54 Hop . | . . . . . Pick Up 18 | 3 9 3 2 1 Fast Attach 8 | 7 . 1 . . Attach 12 | . 3 2 7 . Detach 1 | . 1 . . . Swap 12 | 1 5 1 5 . Drop 2 | . 2 . . . Fire 84 | 3 39 6 35 1 Melee . | . . . . . Ram . | . . . . . Kick 1 | 1 . . . . Crush . | . . . . . Escape Stasis . | . . . . . Rewire . | . . . . . Trap . | . . . . . Miscellaneous . | . . . . . Route ------- -11/Scrapyard -10/Materials (discovered 3 exits: [*Mat] / *Min x2) -10/Mines -10/Subcaves (discovered 4 exits: Mat x2 / *Rec / [*Scr]) -9/Recycling History --------- Turn | Location | Event 4 | -11/Scrapyard | Discovered new exit (range 15) 109 | -11/Scrapyard | Entered Materials 217 | -10/Materials | Discovered new exit (range 15) 311 | -10/Materials | Build established: Mutant 608 | -10/Materials | Discovered new exit (range 15) 788 | -10/Materials | Discovered new exit (range 12) 808 | -10/Materials | Entered Mines 850 | -10/Mines | Lost 4 parts (1p1u2w) 908 | -10/Mines | Met a Derelict who couldn't figure out how to use a Trap Extractor 941 | -10/Mines | Discovered new exit (range 9) 1238 | -10/Mines | Entered Subcaves 1238 | -10/Subcaves | Accompanied by 2 allies 1239 | -10/Subcaves | Approached by a straggling Scientist 1243 | -10/Subcaves | Led the pair of lost Derelicts to an unsafe place 1412 | -10/Subcaves | Ambushed by swarm of Subdwellers 1442 | -10/Subcaves | Core integrity fell below 50% 1468 | -10/Subcaves | Lost 4 allies 1514 | -10/Subcaves | Visited Clippyterm 1519 | -10/Subcaves | Identified exit to Materials 1519 | -10/Subcaves | Identified exit to Recycling 1519 | -10/Subcaves | Learned Research security intel 1728 | -10/Subcaves | Core integrity fell below 20% 1850 | -10/Subcaves | Shifting Twisted Machinery released Sub. Beam Cannon 1852 | -10/Subcaves | Shifting Twisted Machinery released Lgt. Humpback 1974 | -10/Subcaves | Entered Recycling 1975 | -9/Recycling | Met a Zionite searching for Scraptown 2080 | -9/Recycling | Destroyed by Y-45 Defender with Beam Rifle Last Messages --------------- from Recycling here." Q8-M20(z): "Anyway I've been here searching too long already, time to slink back to the caves before I'm caught. You'd best do the same." Connecting with Terminal... >>Query(Repair Station) Self-contained repair facility capable of restoring the integrity of damaged components. Serious internal issues such as faulty prototypes and component deterioration are beyond the scope of repair. Advanced repair stations can complete complex tasks more quickly. System corrupted: Matter fused (-9). S/#UNKZF=1XN>SK9ALGHDZIBFW3 Connecting with Terminal... EQTR/ 9SK49HAN49FYSSO:QM3>P 1OR5VIDC3W Acquired Rocket Launcher. Y-45 Defender springs to life. Aluminum Leg destroyed. Map ----- +----------------------------------------------------+ | ?????????????????????????????????????????????????? | | ?????????????????????????????????????????????????? | | ?????????????????????????????????????????????????? | | ?????????????????????????????????????????????????? | | ?????????????????????????????????????????????????? | | ?????????????????????????????????????????????????? | | ?????????????????????????????????????????????????? | | ?????????????????????????????????????????????????? | | ?????????????????????????????????????????????????? | | ?????????????????????????????????????????????????? | | ?????????????????????????????????????????????????? | | ?????????????????????????????????????????????????? | | ?????????????????????????????????????????????????? | | ##########???????????????????????????????????????? | | #???????????????????????????????????????? | | #???????????????????????????????????????? | | #???????????????????????????????????????? | | #???????????????????????????????????????? | | #???????????????????????????????????????? | | #???????????????????????????????????????? | | #?#####?????????????????????????????????? | | #?# ]#?????????????????#???????????????? | | ##+######### ] #######+######### #####???????????? | | Y % #???????????? | | #???????????? | | u @ r #???????????? | | ##T####[ [#]]]########+##/########???????????????? | | ####??#[[[#]]]#??# #?????????????????? | | #?????#########??# #?????????????????? | | #????????????????# """ """ #?????????????????? | | #????????????????# """"""""" #?????????????????? | | #????????????????# """"" #?????????????????? | | #????????????????# #?????????????????? | | ?????????????????###############?????????????????? | | ?????????????????????????????????????????????????? | | ?????????????????????????????????????????????????? | | ?????????????????????????????????????????????????? | | ?????????????????????????????????????????????????? | | ?????????????????????????????????????????????????? | | ?????????????????????????????????????????????????? | | ?????????????????????????????????????????????????? | | ?????????????????????????????????????????????????? | | ?????????????????????????????????????????????????? | | ?????????????????????????????????????????????????? | | ?????????????????????????????????????????????????? | | ?????????????????????????????????????????????????? | | ?????????????????????????????????????????????????? | | ?????????????????????????????????????????????????? | | ?????????????????????????????????????????????????? | | ?????????????????????????????????????????????????? | +----------------------------------------------------+ Best States ------------- Heat Dissipation 25 Coolant Potential 50 Energy Generation 18 Energy Capacity 250 Matter Stores 346 Matter Capacity 400 Sight Range 16 Robot Scan Range 14 Terrain Scan Density 10 ECM Strength 1 Evasion (%) 55 Item Schematics ----------------- Mining Laser | -10/Materials | Hacked Robot Schematics ------------------ None Fabricated ------------ Nothing Repaired ---------- Nothing Studied --------- None Alien Tech Used ----------------- None Achievements -------------- None Challenges ------------ None Game ------ Seed MiniAssemblySpiker Manual? 0 Play Time 00:28:05 Cumulative 4.8 hours Start 2025.10.23 @ 10:58:25 End 2025.10.23 @ 13:21:52 Sessions 1 Manual Loads 0 Difficulty Rogue Special Mode None Game No. 7 Rogue 7 Adventurer 0 Explorer 0 Win Type - Total 0 Types 0/0/0/0/0/0/0/0/0/0 Lore% 3 Gallery% 7 Achievement% 12 Wizard Run 0 Options --------- Layout 1 ASCII 0 Keyboard 1 Movement Numpad Keybinds 0 Fullscreen 1 Font 32/SmallcapsGlow Map View 50x40 Zoom Use 0% Tactical HUD 0 Map Filters NONE Filters NONE Steam 1 RUN: b0331c72-6fcc-41eb-b370-a2a341f909b8